bitfinex-derivatives/quotes_SOLF0:USTF0_20250227
["timestamp","ask_amount","ask_price","bid_price","bid_amount"]
[1740686682904,2.24430626,135.64,135.58,2.0241]
[1740686683099,2.24430626,135.64,135.62,7.3819]
[1740686683404,2.29500213,135.64,135.62,0.0490051]
[1740686683602,0.05069587,135.64,135.62,0.0490051]
[1740686683902,0.05069587,135.64,135.63,7.3817]
[1740686684707,9.587e-05,135.64,135.63,7.3817]
[1740686685603,9.587e-05,135.64,135.62,7.4309051]
[1740686685809,2.24440213,135.64,135.62,0.0490051]
[1740686686603,9.62580213,135.64,135.62,0.0490051]
[1740686686801,2.24440213,135.64,135.62,0.0490051]
[1740686687011,9.587e-05,135.64,135.62,0.0490051]
[1740686687410,9.587e-05,135.64,135.62,7.4309051]
[1740686687703,9.587e-05,135.64,135.62,0.0490051]
[1740686687907,9.587e-05,135.64,135.63,7.3817]
[1740686690610,9.587e-05,135.64,135.63,29.5017]
[1740686693009,9.587e-05,135.64,135.63,7.3817]
[1740686695712,2.24430626,135.7,135.64,14.7612]
[1740686696116,1.8875,135.71,135.65,1.9305]
[1740686696518,2.0442,135.73,135.66,14.7601]
[1740686696911,0.04662701,135.71,135.68,0.04659908]
[1740686697419,0.04662701,135.71,135.7,7.3778]
[1740686698115,2.701e-05,135.71,135.7,7.3778]
[1740686701122,2.701e-05,135.71,135.7,29.4778]
[1740686701521,2.701e-05,135.71,135.7,7.3778]
[1740686702521,2.701e-05,135.71,135.69,7.3782]
[1740686702921,2.701e-05,135.71,135.68,0.04659908]
[1740686703326,2.701e-05,135.71,135.68,7.42519908]
[1740686703527,3.93592701,135.71,135.68,7.42519908]
[1740686703821,11.31332701,135.71,135.68,0.04659908]
[1740686704023,3.93592701,135.71,135.63,10.07395654]
[1740686704224,2.0112,135.7,135.63,10.07395654]
[1740686704924,7.3798,135.67,135.63,10.07395654]
[1740686705126,7.3798,135.67,135.65,0.05334773]
[1740686705325,0.05001501,135.68,135.63,10.07395654]
[1740686705515,7.3811,135.64,135.63,2.74745654]
[1740686705719,13.9712,135.7,135.62,19.36246962]
[1740686705924,13.9712,135.7,135.55,19.36246962]
[1740686706519,0.04822246,135.64,135.62,7.3817]
[1740686706723,7.3799,135.67,135.55,19.36246962]
[1740686706919,0.04686348,135.64,135.62,0.05468467]
[1740686707124,7.3791,135.68,135.63,7.3813]
[1740686707326,0.05495622,135.64,135.55,19.36246962]
[1740686707528,2.0112,135.7,135.64,0.05222489]
[1740686707728,7.3798,135.67,135.62,7.382]
[1740686707928,7.3798,135.67,135.66,0.05582995]
[1740686708128,7.3802,135.66,135.61,7.3822]
[1740686708327,7.3802,135.66,135.65,0.05281707]
[1740686708626,0.04834557,135.65,135.64,0.04809015]
[1740686708928,0.04834557,135.65,135.54,80.59165232]
[1740686708929,237.2912,135.7,135.52,17.09052014]
[1740686709123,56.28,135.69,135.5,0.51692477]
[1740686709324,7.3843,135.59,135.5,0.51692477]
[1740686709523,7.3843,135.59,135.49,281.13165232]
[1740686709825,191.0,135.61,135.53,0.05426473]
[1740686710124,191.0,135.61,135.49,80.59165232]
[1740686710328,0.05630861,135.58,135.56,1.408e-05]
[1740686710528,22.17630861,135.58,135.56,1.408e-05]
[1740686710928,7.3849,135.57,135.56,1.408e-05]
[1740686711128,22.17630861,135.58,135.49,80.59165232]
[1740686711330,0.05630861,135.58,135.49,80.59165232]
[1740686711523,7.70621886,135.59,135.49,80.59165232]
[1740686711726,7.70621886,135.59,135.46,7.3905]
[1740686712230,7.3878,135.52,135.51,0.05320461]
[1740686712730,29.5278,135.52,135.51,0.05320461]
[1740686713025,29.5278,135.52,135.51,4.61e-06]
[1740686715434,7.3883,135.51,135.4,1.9304]
[1740686715634,12.0528598,135.54,135.33,14.796]
[1740686715835,7.3902,135.48,135.34,5.7641]
[1740686716134,12.0,135.54,135.34,5.7641]
[1740686716328,7.3885,135.51,135.34,5.7641]
[1740686716530,0.0502302,135.45,135.44,7.3916]
[1740686716731,0.0502302,135.45,135.43,0.02590214]
[1740686716924,12.0,135.54,135.34,5.7641]
[1740686717124,0.04933953,135.45,135.43,0.02590214]
[1740686717431,7.3909,135.46,135.34,5.7641]
[1740686717731,7.3909,135.46,135.43,0.02590214]
[1740686717732,0.05061083,135.45,135.43,0.02590214]
[1740686717927,7.3909,135.46,135.43,0.02590214]
[1740686718134,7.3909,135.46,135.34,5.7641]
[1740686718432,0.0536985,135.45,135.43,0.02590214]
[1740686718627,7.3909,135.46,135.34,3.9059]
[1740686718933,0.05495755,135.45,135.43,0.02590214]
[1740686719126,12.0,135.47,135.41,7.3932]
[1740686719332,0.0474218,135.45,135.43,0.02590214]
[1740686719832,0.05639765,135.45,135.43,0.02590214]
[1740686720230,0.05639765,135.45,135.44,7.392]
[1740686720430,0.05639765,135.45,135.43,0.02590214]
[1740686722036,0.05639765,135.45,135.44,7.392]
[1740686722237,0.05639765,135.45,135.43,0.02590214]
[1740686722434,0.05639765,135.45,135.43,7.41810214]
[1740686722828,0.05639765,135.45,135.43,0.02590214]
[1740686723636,0.05639765,135.45,135.44,7.392]
[1740686724032,9.765e-05,135.45,135.44,7.392]
[1740686724738,9.765e-05,135.45,135.43,0.02590214]
[1740686725531,9.765e-05,135.45,135.44,7.392]
[1740686725732,9.765e-05,135.45,135.43,0.02590214]
[1740686725929,9.765e-05,135.45,135.43,7.41810214]
[1740686726338,9.765e-05,135.45,135.43,0.02590214]
[1740686727242,9.765e-05,135.45,135.44,7.392]
[1740686727739,9.765e-05,135.45,135.43,0.02590214]
[1740686729643,7.392,135.44,135.43,0.02590214]
[1740686730944,9.765e-05,135.45,135.43,0.02590214]
[1740686731538,9.765e-05,135.45,135.44,7.392]
[1740686732141,9.765e-05,135.45,135.44,13.2263]
[1740686732344,9.765e-05,135.45,135.44,35.3663]
[1740686734247,9.765e-05,135.45,135.44,13.2263]
[1740686734445,9.765e-05,135.45,135.44,11.2701]
[1740686734753,9.765e-05,135.45,135.43,0.02590214]
[1740686735150,9.765e-05,135.45,135.44,7.392]
[1740686736749,9.765e-05,135.45,135.44,9.3155]
[1740686737451,9.765e-05,135.45,135.44,0.93957]
[1740686737952,9.765e-05,135.45,135.44,8.33157]
[1740686738141,9.765e-05,135.45,135.44,0.93957]
[1740686738341,9.765e-05,135.45,135.43,0.02590214]
[1740686739550,9.765e-05,135.45,135.44,7.392]
[1740686740750,9.765e-05,135.45,135.43,0.02590214]
[1740686741350,9.765e-05,135.45,135.44,7.392]
[1740686742546,9.765e-05,135.45,135.44,9.2616]
[1740686750673,9.765e-05,135.45,135.43,0.02590214]
[1740686751268,9.765e-05,135.45,135.44,7.392]
[1740686756474,9.765e-05,135.45,135.43,0.02590214]
[1740686757679,9.765e-05,135.45,135.44,7.392]
[1740686758377,9.765e-05,135.45,135.43,0.02590214]
[1740686759381,9.765e-05,135.45,135.43,7.3922]
[1740686759575,9.765e-05,135.45,135.37,1.9603]
[1740686759781,9.765e-05,135.45,135.38,14.7902]
[1740686759980,9.765e-05,135.45,135.44,7.392]
[1740686760482,9.765e-05,135.45,135.43,0.05344004]
[1740686760779,9.765e-05,135.45,135.43,0.05424904]
[1740686760980,9.765e-05,135.45,135.43,7.44664904]
[1740686761180,9.765e-05,135.45,135.43,0.05424904]
[1740686762081,9.765e-05,135.45,135.44,7.392]
[1740686762282,9.765e-05,135.45,135.43,0.05424904]
[1740686762677,7.392,135.44,135.43,0.05424904]
[1740686762876,9.765e-05,135.45,135.34,261.60666675]
[1740686762877,22.16009765,135.45,135.34,246.81186675]
[1740686763076,191.0,135.49,135.3,14.7992]
[1740686763276,1.954,135.44,135.39,7.3946]
[1740686763678,7.3929,135.43,135.39,7.3946]
[1740686763879,1.954,135.44,135.3,14.7992]
[1740686764075,0.055231,135.42,135.3,14.7992]
[1740686764276,1.954,135.44,135.39,7.3946]
[1740686764481,1.954,135.44,135.31,1.9589]
[1740686764678,7.3937,135.41,135.31,1.9589]
[1740686764881,0.05392956,135.39,135.35,7.3966]
[1740686765079,0.05392956,135.39,135.29,5.8321]
[1740686765278,12.02,135.43,135.29,5.8321]
[1740686765480,0.05145653,135.35,135.33,7.3976]
[1740686765680,12.02,135.43,135.29,5.8321]
[1740686765884,0.05323835,135.35,135.31,7.3988]
[1740686766186,12.02,135.43,135.29,5.8321]
[1740686766483,0.04644372,135.34,135.29,5.8321]
[1740686766782,0.05013454,135.37,135.34,7.3974]
[1740686766984,7.3962,135.37,135.29,5.8321]
[1740686767179,0.05012057,135.37,135.24,80.59165232]
[1740686767385,14.9386,135.36,135.24,84.54825232]
[1740686767579,0.05455902,135.32,135.29,7.3998]
[1740686767980,0.05455902,135.32,135.24,82.60195232]
[1740686768180,0.05455902,135.32,135.29,7.4001]
[1740686768482,5.902e-05,135.32,135.24,80.59165232]
[1740686768687,5.902e-05,135.32,135.31,7.3991]
[1740686769986,5.902e-05,135.32,135.3,7.45567518]
[1740686770183,5.902e-05,135.32,135.3,0.05637518]
[1740686770585,5.902e-05,135.32,135.31,7.3991]
[1740686771087,5.902e-05,135.32,135.31,9.4394]
[1740686771285,5.902e-05,135.32,135.31,13.2328]
[1740686772191,5.902e-05,135.32,135.31,11.3444]
[1740686772394,5.902e-05,135.32,135.31,7.3991]
[1740686772786,5.902e-05,135.32,135.31,11.3444]
[1740686772993,5.902e-05,135.32,135.31,13.2328]
[1740686773395,5.902e-05,135.32,135.31,35.4128]
[1740686774083,5.902e-05,135.32,135.31,13.2328]
[1740686774795,5.902e-05,135.32,135.3,7.45577518]
[1740686774987,5.902e-05,135.32,135.3,0.05637518]
[1740686775897,5.902e-05,135.32,135.31,7.3991]
[1740686777791,5.902e-05,135.32,135.31,13.3343]
[1740686781193,5.902e-05,135.32,135.31,35.5143]
[1740686781393,5.902e-05,135.32,135.31,20.54607924]
[1740686781594,5.902e-05,135.32,135.3,0.05637518]
[1740686781795,5.902e-05,135.32,135.3,22.23637518]
[1740686781999,5.902e-05,135.32,135.31,7.3991]
[1740686782205,5.902e-05,135.32,135.31,29.5791]
[1740686782997,13.1466,135.49,135.31,29.5791]
[1740686782998,3.9003,135.48,135.31,22.18]
[1740686783194,3.9003,135.48,135.31,194.47808735]
[1740686783400,5.53427196,135.48,135.31,194.47808735]
[1740686783598,3.59017196,135.48,135.45,7.3914]
[1740686783801,3.59017196,135.48,135.36,12.14]
[1740686783802,1.63397196,135.48,135.36,12.14]
[1740686783996,1.63397196,135.48,135.36,205.14]
[1740686784200,0.04958923,135.43,135.41,0.05507951]
[1740686784696,2.787e-05,135.43,135.42,7.3931]
[1740686785001,1.8901,135.51,135.41,0.05507951]
[1740686785198,7.3899,135.48,135.4,7.3939]
[1740686785398,7.3899,135.48,135.36,12.14]
[1740686785600,9.02387196,135.48,135.36,12.14]
[1740686786002,0.05504113,135.43,135.41,0.05459621]
[1740686786201,7.3894,135.49,135.41,0.05459621]
[1740686786500,9.02337196,135.49,135.44,7.3917]
[1740686787105,7.3903,135.48,135.43,7.3921]
[1740686787305,0.05418258,135.48,135.45,0.04942524]
[1740686787505,1.63397196,135.48,135.37,2.0125]
[1740686787703,1.68762604,135.48,135.45,0.05580194]
[1740686787897,1.63397196,135.48,135.45,7.3911]
[1740686788096,0.05489527,135.48,135.37,2.0125]
[1740686788296,7.3924,135.44,135.37,2.0125]
[1740686788599,1.58152027,135.48,135.37,2.0125]
[1740686788798,1.9996,135.47,135.37,2.0125]
[1740686789203,3.58112027,135.47,135.37,2.0125]
[1740686789398,0.0509079,135.43,135.41,0.05573427]
[1740686789804,1.63242817,135.43,135.41,0.05573427]
[1740686790611,7.3894,135.49,135.44,7.3915]
[1740686790812,7.3894,135.49,135.37,2.0125]
[1740686791006,8.97092027,135.49,135.37,2.0125]
[1740686791207,1.58152027,135.49,135.37,2.0125]
[1740686791809,0.05059678,135.44,135.42,0.05061147]
[1740686792005,7.39,135.48,135.42,0.05061147]
[1740686792212,0.05201372,135.44,135.42,0.05061147]
[1740686792405,1.58152027,135.49,135.42,0.05061147]
[1740686792610,0.04712902,135.44,135.43,7.3926]
[1740686792815,1.58152027,135.49,135.42,0.05061147]
[1740686793113,0.05078813,135.45,135.42,0.05061147]
[1740686793314,0.05078813,135.45,135.42,7.44341147]
[1740686793608,1.6323084,135.45,135.42,0.05061147]
[1740686793816,0.05078813,135.45,135.33,1.9678]
[1740686794002,0.05078813,135.45,135.33,3.8805]
[1740686794003,3.9512,135.44,135.33,3.8805]
[1740686794404,5.4821088,135.44,135.32,1.47797812]
[1740686794600,196.4821088,135.44,135.32,1.47797812]
[1740686795008,0.04889224,135.39,135.37,0.04835687]
[1740686795414,1.5309088,135.39,135.37,0.04835687]
[1740686795610,1.57946852,135.39,135.37,0.04835687]
[1740686796515,22.20855972,135.39,135.29,5.7276]
[1740686796712,7.3954,135.38,135.29,5.7276]
[1740686796912,1.48255193,135.39,135.29,5.7276]
[1740686797509,1.48255193,135.39,135.38,7.3953]
[1740686797910,0.05509737,135.4,135.37,0.04819078]
[1740686798112,1.5376493,135.4,135.37,0.04819078]
[1740686798421,1.53570525,135.4,135.37,0.04718408]
[1740686798607,1.53570525,135.4,135.37,7.44268408]
[1740686798807,1.53570525,135.4,135.37,0.04718408]
[1740686799614,1.53570525,135.4,135.37,7.44258408]
[1740686799812,1.53570525,135.4,135.37,0.04718408]
[1740686800212,8.92990525,135.4,135.37,0.04718408]
[1740686800413,1.53570525,135.4,135.37,0.04718408]
[1740686800614,0.05315332,135.4,135.29,5.7276]
[1740686800809,1.43536785,135.4,135.29,5.7276]
[1740686801415,8.82996785,135.4,135.29,5.7276]
[1740686801620,1.43536785,135.4,135.29,5.7276]
[1740686801818,0.05340168,135.36,135.29,5.7276]
[1740686802118,0.05340168,135.36,135.35,7.3969]
[1740686802320,1.48876953,135.36,135.35,7.3969]
[1740686802917,3.9512,135.44,135.39,7.3945]
[1740686803113,7.3929,135.43,135.39,7.3945]
[1740686803313,3.9512,135.44,135.29,5.7276]
[1740686803518,3.9512,135.44,135.3,14.7993]
[1740686803712,7.3927,135.43,135.3,14.7993]
[1740686804019,0.05191713,135.38,135.35,0.0562558]
[1740686804215,7.3934,135.42,135.3,14.7993]
[1740686804412,0.05339463,135.38,135.35,0.04850405]
[1740686804609,0.05339463,135.38,135.37,7.3958]
[1740686804819,9.463e-05,135.38,135.37,7.3958]
[1740686810920,9.463e-05,135.38,135.37,29.5558]
[1740686811116,9.463e-05,135.38,135.37,7.3958]
[1740686811312,9.463e-05,135.38,135.37,29.5558]
[1740686811513,9.463e-05,135.38,135.37,7.3958]
[1740686813925,9.463e-05,135.38,135.36,7.3961]
[1740686814123,9.463e-05,135.38,135.35,0.04850405]
[1740686814321,9.463e-05,135.38,135.37,7.3958]
[1740686819915,9.463e-05,135.38,135.35,0.04850405]
[1740686822323,9.463e-05,135.38,135.37,7.3958]
[1740686823329,9.463e-05,135.38,135.36,1.932]
[1740686823625,9.463e-05,135.38,135.37,3.9645]
[1740686823826,61.02787553,135.46,135.37,3.9645]
[1740686824130,9.68037553,135.46,135.37,196.9645]
[1740686824323,9.68037553,135.46,135.45,7.3915]
[1740686824526,78.28738505,135.47,135.43,12.3]
[1740686824926,78.28738505,135.47,135.46,7.3909]
[1740686824927,7.39042758,135.47,135.46,7.3909]
[1740686825230,2.758e-05,135.47,135.46,7.3909]
[1740686825432,2.758e-05,135.47,135.46,22.14]
[1740686825634,0.05384509,135.48,135.44,0.04964643]
[1740686827328,7.44404509,135.48,135.35,7.3968]
[1740686827636,1.924,135.47,135.34,12.32]
[1740686828335,3.9097,135.51,135.35,1.47765053]
[1740686828533,0.05198575,135.42,135.39,0.05018662]
[1740686828729,3.9097,135.51,135.35,194.47765053]
[1740686828932,3.9097,135.51,135.35,1.47765053]
[1740686829834,0.04712309,135.44,135.42,0.05021943]
[1740686830031,3.9097,135.51,135.35,194.47765053]
[1740686830236,3.9097,135.51,135.42,0.05115878]
[1740686830237,0.05063791,135.44,135.42,0.05115878]
[1740686830433,3.9097,135.51,135.35,194.47765053]
[1740686830632,0.05466591,135.44,135.42,0.05086526]
[1740686830835,3.9097,135.51,135.35,194.47765053]
[1740686831037,0.05603359,135.44,135.42,0.05475475]
[1740686831231,3.9097,135.51,135.35,194.47765053]
[1740686831431,3.9097,135.51,135.42,0.04651095]
[1740686831635,3.9097,135.51,135.35,194.47765053]
[1740686831835,0.04962651,135.48,135.45,0.05050369]
[1740686832135,0.0532797,135.48,135.45,0.04847354]
[1740686833930,7.3915,135.45,135.37,7.3954]
[1740686834330,7.3915,135.45,135.36,12.32]
[1740686834530,3.9097,135.51,135.36,12.32]
[1740686835039,0.05523869,135.45,135.42,0.05134733]
[1740686835238,7.3899,135.48,135.41,7.3933]
[1740686835440,0.05204779,135.45,135.42,0.05292349]
[1740686835636,0.05204779,135.45,135.42,7.44582349]
[1740686836642,0.05204779,135.45,135.42,0.05292349]
[1740686838234,0.05204779,135.45,135.43,12.3]
[1740686838440,0.05204779,135.45,135.42,22.21292349]
[1740686838638,0.05204779,135.45,135.42,0.05292349]
[1740686839039,0.05204779,135.45,135.44,7.392]
[1740686839239,0.05204779,135.45,135.42,0.05292349]
[1740686840237,0.05204779,135.45,135.36,40.75910726]
[1740686840434,12.3,135.46,135.36,40.75910726]
[1740686840639,7.3924,135.44,135.36,40.75910726]
[1740686841148,3.8325,135.45,135.36,40.75910726]
[1740686841346,0.04848298,135.41,135.39,0.02293562]
[1740686845142,0.04848298,135.41,135.33,200.94]
[1740686845943,0.04848298,135.41,135.36,7.3962]
[1740686846143,0.04848298,135.41,135.33,200.94]
[1740686847745,0.04848298,135.41,135.35,7.3966]
[1740686847952,0.04848298,135.41,135.33,200.94]
[1740686848343,0.04848298,135.41,135.35,7.3966]
[1740686848543,0.04848298,135.41,135.33,200.94]
[1740686849640,7.44248298,135.41,135.33,200.94]
[1740686850148,0.04848298,135.41,135.35,7.3965]
[1740686850449,1.89948298,135.41,135.33,200.94]
[1740686851047,0.04848298,135.41,135.33,200.94]
[1740686851247,0.04848298,135.41,135.4,7.3942]
[1740686851746,0.04848298,135.41,135.33,200.94]
[1740686852545,0.04848298,135.41,135.39,7.3946]
[1740686852747,0.04848298,135.41,135.33,200.94]
[1740686853239,0.04848298,135.41,135.4,7.3942]
[1740686854649,8.298e-05,135.41,135.4,7.3942]
[1740686856048,8.298e-05,135.41,135.4,29.5542]
[1740686856247,8.298e-05,135.41,135.4,7.3942]
[1740686856949,8.298e-05,135.41,135.4,41.8142]
[1740686857150,8.298e-05,135.41,135.4,41.8923]
[1740686857945,1.9427,135.53,135.4,34.4981]
[1740686858149,1.9427,135.53,135.41,14.7871]
[1740686858552,1.9427,135.53,135.51,7.3879]
[1740686858850,1.9427,135.53,135.41,14.7871]
[1740686859052,1.9427,135.53,135.52,7.3876]
[1740686860052,1.9427,135.53,135.51,7.43638298]
[1740686860753,1.9427,135.53,135.51,0.04848298]
[1740686861448,1.9427,135.53,135.52,7.3876]
[1740686863355,0.05577784,135.54,135.53,7.3871]
[1740686863848,7.784e-05,135.54,135.53,7.3871]
[1740686866660,7.784e-05,135.54,135.53,29.5271]
[1740686869458,7.784e-05,135.54,135.53,7.3871]
[1740686875464,7.784e-05,135.54,135.51,0.04848298]
[1740686876069,7.784e-05,135.54,135.51,7.43658298]
[1740686876267,7.784e-05,135.54,135.51,0.04848298]
[1740686877168,7.784e-05,135.54,135.53,7.3871]
[1740686877871,7.784e-05,135.54,135.53,4.3046]
[1740686878172,7.784e-05,135.54,135.52,7.3874]
[1740686878568,7.784e-05,135.54,135.51,7.43628298]
[1740686878867,7.784e-05,135.54,135.44,200.937]
[1740686879166,1.9385,135.61,135.44,200.937]
[1740686879569,1.9385,135.61,135.51,7.3878]
[1740686879768,1.9385,135.61,135.44,200.937]
[1740686879970,7.3855,135.56,135.44,200.937]
[1740686880168,7.3855,135.56,135.5,7.3883]
[1740686880369,1.9385,135.61,135.44,202.7966]
[1740686880670,1.9385,135.61,135.49,7.389]
[1740686880866,2.0266,135.6,135.44,202.7966]
[1740686881266,0.04761154,135.53,135.44,202.7966]
[1740686881469,12.18,135.57,135.44,200.86]
[1740686881669,0.0562441,135.5,135.39,1.9366]
[1740686881973,12.18,135.57,135.39,1.9366]
[1740686882272,0.05283305,135.46,135.39,1.9366]
[1740686882774,0.04654907,135.44,135.39,1.9366]
[1740686883272,0.05323754,135.43,135.39,1.9366]
[1740686883673,191.0,135.56,135.42,7.3931]
[1740686883871,192.9227,135.55,135.39,1.9366]
[1740686884076,0.04805806,135.49,135.46,7.3906]
[1740686884374,2.0367,135.54,135.39,1.9366]
[1740686884568,0.05430552,135.49,135.39,1.9366]
[1740686884768,1.8509,135.53,135.39,1.9366]
[1740686885069,7.388,135.52,135.46,7.3906]
[1740686885269,0.05140955,135.47,135.46,7.3906]
[1740686885471,7.388,135.52,135.46,7.3906]
[1740686885774,0.04703516,135.48,135.39,1.9366]
[1740686886171,1.8509,135.53,135.39,1.9366]
[1740686886371,0.05435647,135.45,135.43,7.3923]
[1740686886573,1.8509,135.53,135.39,1.9366]
[1740686886772,0.0536058,135.45,135.39,1.9366]
[1740686886975,0.0536058,135.45,135.41,7.3934]
[1740686887171,0.0536058,135.45,135.39,1.9366]
[1740686887673,0.0536058,135.45,135.42,7.393]
[1740686887877,0.0536058,135.45,135.36,3.8941]
[1740686888065,0.0536058,135.45,135.36,7.396]
[1740686888265,1.9476,135.45,135.34,10.21959913]
[1740686888475,0.04901779,135.42,135.34,10.21959913]
[1740686890775,0.04901779,135.42,135.32,14.2906]
[1740686891078,1.9476,135.45,135.32,14.2906]
[1740686891276,1.9476,135.45,135.38,7.3952]
[1740686891478,0.05226244,135.4,135.38,7.3952]
[1740686891773,0.05226244,135.4,135.39,7.3944]
[1740686891774,0.05355372,135.4,135.39,7.3944]
[1740686892779,5.372e-05,135.4,135.39,7.3944]
[1740686893372,5.372e-05,135.4,135.39,9.248]
[1740686895273,5.372e-05,135.4,135.39,7.3944]
[1740686902572,5.372e-05,135.4,135.39,9.3038]
[1740686903789,5.372e-05,135.4,135.39,11.1593]
[1740686904588,5.372e-05,135.4,135.39,33.3193]
[1740686908185,5.372e-05,135.4,135.39,34.79651397]
[1740686908486,5.372e-05,135.4,135.39,229.14088477]
[1740686909089,5.372e-05,135.4,135.39,227.79651397]
[1740686909778,5.372e-05,135.4,135.39,229.14081965]
[1740686912796,5.372e-05,135.4,135.39,229.14065784]
[1740686913097,5.372e-05,135.4,135.39,217.83651397]
[1740686914000,5.372e-05,135.4,135.39,24.83651397]
[1740686914796,5.372e-05,135.4,135.39,12.63651397]
[1740686915098,5.372e-05,135.4,135.39,98.53245924]
[1740686915289,5.9543,135.54,135.39,87.37315924]
[1740686915697,7.3903,135.48,135.39,85.89594527]
[1740686915892,5.6743,135.47,135.41,7.3934]
[1740686916201,13.0651,135.47,135.39,85.89594527]
[1740686916407,5.6743,135.47,135.39,85.89594527]
[1740686916695,7.44761186,135.44,135.42,0.05592339]
[1740686916904,7.44761186,135.44,135.39,68.69144527]
[1740686917096,0.05561186,135.44,135.38,30.69570406]
[1740686917303,0.05561186,135.44,135.38,38.09070406]
[1740686917496,0.05561186,135.44,135.38,30.69570406]
[1740686918404,0.05561186,135.44,135.4,7.3939]
[1740686919098,0.05561186,135.44,135.38,30.69570406]
[1740686919797,0.05561186,135.44,135.41,7.3931]
[1740686920098,0.05561186,135.44,135.38,30.69570406]
[1740686920504,0.05561186,135.44,135.29,68.45053467]
[1740686920704,12.2,135.45,135.31,17.52336249]
[1740686921004,6.317e-05,135.38,135.29,68.45053467]
[1740686921408,6.317e-05,135.38,135.37,7.3958]
[1740686922106,22.16006317,135.38,135.36,7.45111409]
[1740686922301,6.317e-05,135.38,135.36,7.3962]
[1740686922500,22.16006317,135.38,135.36,0.04774009]
[1740686922998,22.16006317,135.38,135.29,41.45113467]
[1740686923194,6.317e-05,135.38,135.34,7.3974]
[1740686923397,191.0,135.42,135.29,41.45113467]
[1740686923604,7.396,135.37,135.29,41.45113467]
[1740686923806,7.396,135.37,135.33,7.3977]
[1740686924206,0.05056773,135.36,135.34,7.3974]
[1740686924605,22.21056773,135.36,135.34,7.3974]
[1740686925605,22.21056773,135.36,135.28,40.93339163]
[1740686925804,0.05056773,135.36,135.28,40.93339163]
[1740686926305,0.05056773,135.36,135.35,7.3969]
[1740686929108,0.05056773,135.36,135.29,12.18]
[1740686929815,0.05056773,135.36,135.35,7.3969]
[1740686930003,0.05056773,135.36,135.29,12.18]
[1740686930203,0.05056773,135.36,135.32,7.3983]
[1740686930403,0.05056773,135.36,135.29,12.18]
[1740686933410,0.05056773,135.36,135.34,7.3972]
[1740686933609,0.05056773,135.36,135.29,12.18]
[1740686933801,0.05056773,135.36,135.35,7.3969]
[1740686936604,6.773e-05,135.36,135.35,7.3969]
[1740686940415,6.773e-05,135.36,135.35,13.2052]
[1740686944815,6.773e-05,135.36,135.35,35.3652]
[1740686945409,6.773e-05,135.36,135.35,38.18747754]
[1740686945610,210.5061,135.55,135.49,7.3892]
[1740686945811,12.12,135.55,135.41,12.12]
[1740686946115,12.12,135.55,135.42,5.7192]
[1740686946815,0.04963683,135.5,135.47,0.05660108]
[1740686948119,7.43863683,135.5,135.47,0.05660108]
[1740686948320,0.04963683,135.5,135.47,0.05660108]
[1740686949218,0.04963683,135.5,135.49,7.3893]
[1740686954922,0.04963683,135.5,135.47,0.05660108]
[1740686955325,0.04963683,135.5,135.49,7.3893]
[1740686956221,0.04963683,135.5,135.48,7.3895]
[1740686956823,0.04963683,135.5,135.47,0.05660108]
[1740686957225,7.3898,135.49,135.47,0.05660108]
[1740686957625,22.14,135.49,135.47,0.05660108]
[1740686957821,7.43833683,135.5,135.47,0.05660108]
[1740686958325,7.43833683,135.5,135.47,7.44660108]
[1740686958624,0.04963683,135.5,135.47,0.05660108]
[1740686959328,7.3895,135.49,135.47,0.05660108]
[1740686959524,0.04963683,135.5,135.47,0.05660108]
[1740686960317,0.04963683,135.5,135.47,7.44670108]
[1740686960627,0.04963683,135.5,135.47,0.05660108]
[1740686961531,7.3898,135.48,135.47,0.05660108]
[1740686962929,7.3896,135.49,135.47,0.05660108]
[1740686964129,0.04963683,135.5,135.47,0.05660108]
[1740686964730,7.3898,135.48,135.47,0.05660108]
[1740686966129,0.04963683,135.5,135.36,5.7286]
[1740686966330,12.1,135.48,135.36,5.7286]
[1740686966531,191.0,135.47,135.36,3.87]
[1740686966934,213.2,135.47,135.36,3.87]
[1740686967125,213.2,135.47,135.35,1.47765053]
[1740686967331,7.3964,135.36,135.35,1.47765053]
[1740686968130,0.05256292,135.37,135.35,1.47765053]
[1740686968326,12.18,135.43,135.35,1.47765053]
[1740686968529,0.05437877,135.37,135.35,1.47765053]
[1740686968735,7.3938,135.41,135.35,1.47765053]
[1740686968932,0.04670621,135.37,135.35,1.47765053]
[1740686969132,7.3949,135.4,135.35,1.47765053]
[1740686969338,0.04702444,135.37,135.35,1.47765053]
[1740686969539,12.18,135.43,135.35,1.47765053]
[1740686969739,0.04798883,135.37,135.35,1.47765053]
[1740686969937,12.18,135.43,135.35,1.47765053]